Workbook

Sheet ＴＯＰ
B4: 入力・移動 各シートの | E4: に必要事項を入力します。
B5: 印刷 各シートはＡ４サイズの用紙に出力されます。
B7: 入力・移動 | D7: 説明
D9: 会社名と決算期、法定実効税率、過去３期の業績の基本情報を入力します
D11: 別表５（１）の数字を入力し、税効果の対象となる数字を抽出し、簡易な税効果計算を行います
D13: 分類１から分類５までの会社区分を検討し、決定します
D15: 予算上の利益などから、繰延税金資産の回収可能性とスケジューリングを検討します
D17: 実際の法人税額と実効税率からみた理論上の法人税額との差異を確認し、税効果会計の計算が正しいか検証します
F19: 提供：小林敬幸税理士事務所
F20: Ver. 1.0

Sheet 基本情報入力
B6: 会社名 | E6: 株式会社森岡工務店 | G6: 中小法人等／ 大法人の区分 | H6: 大法人
B8: 決算期 | E8: 2020-03-31 | G8: 事業税軽減税率適用／不適用の区分 | H8: 適用法人
B11: 法定実効税率の計算
B12: 所在地 | E12: 大阪府大阪市 | F12: 年度 | G12: =E8 -> 2020-03-31 | H12: =EDATE(G12,12) -> 2021-03-31 | I12: =EDATE(H12,12) -> 2022-03-31 | J12: =EDATE(I12,12) -> 2023-03-31 | K12: =EDATE(J12,12) -> 2024-03-31 | L12: =EDATE(K12,12) -> 2025-03-31
B13: 資本金の金額 | E13: 150000000 | G13: 150000000 | H13: 150000000 | I13: 150000000 | J13: 150000000 | K13: 150000000 | L13: 150000000
B14: 法人税率 | D14: 通常の法人税率 | E14: 0.234 | G14: 0.234 | H14: 0.232 | I14: 0.232 | J14: 0.232 | K14: 0.232 | L14: 0.232
D15: 中小法人等年800万円以下 | E15: 0.15 | G15: 0.15 | H15: 0.19 | I15: 0.19 | J15: 0.19 | K15: 0.19 | L15: 0.19
B16: 地方法人税率 | E16: 0.044 | G16: 0.103 | H16: 0.103 | I16: 0.103 | J16: 0.103 | K16: 0.103 | L16: 0.103
B17: 都道府県民税法人税割の税率 | E17: 0.042 | G17: 0.02 | H17: 0.02 | I17: 0.02 | J17: 0.02 | K17: 0.02 | L17: 0.02
B18: 市町村民税法人税割の税率 | E18: 0.119 | G18: 0.082 | H18: 0.082 | I18: 0.082 | J18: 0.082 | K18: 0.082 | L18: 0.082
B19: 住民税率計 | E19: =E17+E18 -> 0.161 | G19: =G17+G18 -> 0.102 | H19: 0.102 | I19: 0.102 | J19: 0.102 | K19: 0.102 | L19: 0.102
B20: 事業税率 | C20: 付加価値割 | E20: 0.012 | G20: 0.012 | H20: 0.012 | I20: 0.012 | J20: 0.012 | K20: 0.012 | L20: 0.012
C21: 資本割 | E21: 0.005 | G21: 0.005 | H21: 0.005 | I21: 0.005 | J21: 0.005 | K21: 0.005 | L21: 0.005
C22: 所得割 | D22: 年400万円以下 | E22: 0.00395 | G22: 0.01995 | H22: 0.01995 | I22: 0.01995 | J22: 0.01995 | K22: 0.01995 | L22: 0.01995
D23: 年400万円超８００万円以下 | E23: 0.00635 | G23: 0.02835 | H23: 0.02835 | I23: 0.02835 | J23: 0.02835 | K23: 0.02835 | L23: 0.02835
D24: 年800万円超 | E24: 0.0088 | G24: 0.0378 | H24: 0.0378 | I24: 0.0378 | J24: 0.0378 | K24: 0.0378 | L24: 0.0378
B25: 事業税標準税率 | E25: 0.007 | G25: 0 | H25: 0 | I25: 0 | J25: 0 | K25: 0 | L25: 0
B26: 地方法人特別税率 | E26: 4.142 | G26: 0 | H26: 0 | I26: 0 | J26: 0 | K26: 0 | L26: 0
B27: 法定実効税率（年８００万円超） | E27: =ROUND((E14*(1+E16+E19)+E24+E25*E26)/(1+E24+E25*E26),4) -> 0.3081 | G27: =ROUND((G14*(1+G16+G19)+G24+G25*G26)/(1+G24+G25*G26),4) -> 0.3081 | H27: 0.3058 | I27: 0.3058 | J27: 0.3058 | K27: 0.3058 | L27: 0.3058
B28: 法定実効税率（年４００万円超～８００万円以下） | E28: =ROUND((E14*(1+E16+E19)+E23+E25*E26)/(1+E23+E25*E26),4) -> 0.3065 | G28: =ROUND((G14*(1+G16+G19)+G23+G25*G26)/(1+G23+G25*G26),4) -> 0.3018 | H28: 0.2994 | I28: 0.2994 | J28: 0.2994 | K28: 0.2994 | L28: 0.2994
B29: 法定実効税率（年４００万円以下） | E29: =ROUND((E14*(1+E16+E19)+E22+E25*E26)/(1+E22+E25*E26),4) -> 0.3049 | G29: =ROUND((G14*(1+G16+G19)+G22+G25*G26)/(1+G22+G25*G26),4) -> 0.296 | H29: 0.2937 | I29: 0.2937 | J29: 0.2937 | K29: 0.2937 | L29: 0.2937
B30: 欠損金の控除限度額の割合 | G30: 0.5 | H30: 0.5 | I30: 0.5 | J30: 0.5 | K30: 0.5 | L30: 0.5
G31: =IF($H$6="中小法人等",1,IF(G12<=$H$40,$I$40,IF(G12<=$H$41,$I$41,IF(G12<=$H$42,$I$42,IF(G12<=$H$43,$I$43,$I$44))))) -> 0.5 | H31: =IF($H$6="中小法人等",1,IF(H12<=$H$40,$I$40,IF(H12<=$H$41,$I$41,IF(H12<=$H$42,$I$42,IF(H12<=$H$43,$I$43,$I$44))))) -> 0.5 | I31: 0.5 | J31: 0.5 | K31: 0.5 | L31: 0.5
B33: 過去三年間と当期の課税所得、繰越欠損金、一時差異の金額の推移
F34: 年度 | G34: =EDATE(H34,-12) -> 2015-03-31 | H34: 2016-03-31 | I34: =EDATE(J34,-12) -> 2017-03-31 | J34: =EDATE(K34,-12) -> 2018-03-31 | K34: =EDATE(L34,-12) -> 2019-03-31 | L34: =G12 -> 2020-03-31
B35: 繰越欠損金控除前の課税所得（別表４差引計） | G35: 1624125771 | H35: 1231222513 | I35: 1624125771 | J35: 1231222513 | K35: 1432247781 | L35: 1815014975
B36: 繰越欠損金 | G36: 0 | H36: 0 | I36: 0 | J36: 0 | K36: 0 | L36: 0
B37: 一時差異の金額 | G37: 953547123 | H37: 1120000123 | I37: 953547123 | J37: 1120000123 | K37: 1089321444 | L37: =別表５情報!K50 -> 1069579942
G40: 2015-03-31 | H40: =DATE(YEAR(G40)+1,MONTH(G40),DAY(G40)) -> 2016-03-31 | I40: 0.8
G41: 2016-03-31 | H41: =DATE(YEAR(G41)+1,MONTH(G41),DAY(G41)) -> 2017-03-31 | I41: 0.65
G42: 2017-03-31 | H42: 2018-03-31 | I42: 0.6
G43: 2018-03-31 | H43: 2019-03-31 | I43: 0.55
G44: 2019-03-31 | H44: 2020-03-31 | I44: 0.5

Sheet 別表５情報
B4: 会社名 | C4: =基本情報入力!E6 -> 株式会社森岡工務店
B6: 決算期 | C6: =基本情報入力!E8 -> 2020-03-31
D9: 別表５（一）Ⅰ | I9: 繰延税金資産（負債）の計算 | M9: （単位：円）
A10: 区分 | D10: 期首現在 | E10: 当期中の増減 | G10: 差引翌期首現在 | H10: 区分 | I10: 剰余金 | J10: 積立金（税務上） | L10: 繰延税金資産（負債） | M10: 将来加算一時差異と将来減算一時差異の区分を入力
D11: 利益積立金額 | E11: 減 | F11: 増 | G11: 利益積立金額 ①-②+③ | J11: 対象外 | K11: 税効果対象
L12: 0.3081
D13: ① | E13: ② | F13: ③ | G13: ④ | I13: ⑤ | J13: ⑥ | K13: ⑦ | L13: ="⑧＝⑦×"&TEXT(L12,"0.00%") -> ⑧＝⑦×30.81%
A14: 利益準備金 | C14: 1 | D14: 125000000 | G14: =D14-E14+F14 -> 125000000 | H14: 剰余金 | I14: =IF(H14="剰余金",G14,0) -> 125000000 | J14: =IF(H14="対象外",G14,0) -> 0 | K14: =IF(H14="税効果対象",G14,0) -> 0 | L14: =ROUNDDOWN(K14*$L$12,0) -> 0 | P14: =IF(H14="税効果対象",1,0) -> 0 | Q14: =IF(P14=0,"",IF(K14<=0,"将来加算一時差異","将来減算一時差異")) -> 
A15: 別途積立金 | C15: 2 | D15: 6262000000 | F15: 700000000 | G15: =D15-E15+F15 -> 6962000000 | H15: 剰余金 | I15: =IF(H15="剰余金",G15,0) -> 6962000000 | J15: =IF(H15="対象外",G15,0) -> 0 | K15: =IF(H15="税効果対象",G15,0) -> 0 | L15: =ROUNDDOWN(K15*$L$12,0) -> 0 | P15: =IF(H15="税効果対象",1,0) -> 0
A16: 特別償却準備金 | C16: 3 | D16: 84998101 | E16: 27687561 | F16: 7166616 | G16: =D16-E16+F16 -> 64477156 | H16: 剰余金 | I16: 64477156 | J16: 0 | K16: 0 | L16: 0 | P16: 0
A17: 特別償却準備金認容 | C17: 4 | D17: -84998101 | E17: -27687561 | F17: -7166616 | G17: -64477156 | H17: 税効果対象 | I17: 0 | J17: 0 | K17: -64477156 | L17: -19865411 | M17: 将来加算一時差異 | P17: 1 | Q17: 将来加算一時差異
A18: 資産圧縮積立金 | C18: 5 | D18: 125334824 | E18: 7556014 | F18: 8683000 | G18: 126461810 | H18: 剰余金 | I18: 126461810 | J18: 0 | K18: 0 | L18: 0 | P18: 0
A19: 資産圧縮積立金認容 | C19: 6 | D19: -125334824 | E19: -7556014 | F19: -8683000 | G19: -126461810 | H19: 税効果対象 | I19: 0 | J19: 0 | K19: -126461810 | L19: -38962883 | M19: 将来加算一時差異 | P19: 1 | Q19: 将来加算一時差異
A20: 退職給付引当金 | C20: 7 | D20: 887019266 | E20: 68861500 | F20: 64414210 | G20: 882571976 | H20: 税効果対象 | I20: 0 | J20: 0 | K20: 882571976 | L20: 271920425 | M20: 将来減算一時差異 | P20: 1 | Q20: 将来減算一時差異
A21: 役員退職慰労引当金 | C21: 8 | D21: 209325000 | F21: 23650000 | G21: 232975000 | H21: 税効果対象 | I21: 0 | J21: 0 | K21: 232975000 | L21: 71779597 | M21: 将来減算一時差異 | P21: 1 | Q21: 将来減算一時差異
A22: 賞与引当金 | C22: 9 | D22: 39196632 | E22: 39196632 | F22: 37139940 | G22: 37139940 | H22: 税効果対象 | I22: 0 | J22: 0 | K22: 37139940 | L22: 11442815 | M22: 将来減算一時差異 | P22: 1 | Q22: 将来減算一時差異
A23: 貸倒引当金 | C23: 10 | D23: 15142700 | E23: 15142700 | F23: 20189330 | G23: 20189330 | H23: 税効果対象 | I23: 0 | J23: 0 | K23: 20189330 | L23: 6220332 | M23: 将来減算一時差異 | P23: 1 | Q23: 将来減算一時差異
A24: 一括償却資産（短期） | C24: 11 | D24: 1041590 | E24: 1041590 | F24: 885710 | G24: 885710 | H24: 税効果対象 | I24: 0 | J24: 0 | K24: 885710 | L24: 272887 | M24: 将来減算一時差異 | P24: 1 | Q24: 将来減算一時差異
A25: 繰延資産償却超過額 | C25: 12 | D25: 5930104 | E25: 1959762 | G25: 3970342 | H25: 税効果対象 | I25: 0 | J25: 0 | K25: 3970342 | L25: 1223262 | M25: 将来減算一時差異 | P25: 1 | Q25: 将来減算一時差異
A26: 減価償却超過額 | C26: 13 | D26: 6485019 | E26: 1694352 | G26: 4790667 | H26: 税効果対象 | I26: 0 | J26: 0 | K26: 4790667 | L26: 1476004 | M26: 将来減算一時差異 | P26: 1 | Q26: 将来減算一時差異
A27: 販売促進費引当金 | C27: 14 | D27: 35600000 | E27: 35600000 | F27: 37800000 | G27: 37800000 | H27: 税効果対象 | I27: 0 | J27: 0 | K27: 37800000 | L27: 11646180 | M27: 将来減算一時差異 | P27: 1 | Q27: 将来減算一時差異
A28: 福利厚生会残高 | C28: 15 | D28: 3100285 | E28: 3100285 | F28: 2537803 | G28: 2537803 | H28: 税効果対象 | I28: 0 | J28: 0 | K28: 2537803 | L28: 781897 | M28: 将来減算一時差異 | P28: 1 | Q28: 将来減算一時差異
A29: 一括償却資産（長期） | C29: 16 | D29: 1283170 | E29: 522140 | F29: 885710 | G29: 1646740 | H29: 税効果対象 | I29: 0 | J29: 0 | K29: 1646740 | L29: 507360 | M29: 将来減算一時差異 | P29: 1 | Q29: 将来減算一時差異
C30: 17 | G30: 0 | I30: 0 | J30: 0 | K30: 0 | L30: 0 | P30: 0
C31: 18 | G31: 0 | I31: 0 | J31: 0 | K31: 0 | L31: 0 | P31: 0
C32: 19 | G32: 0 | I32: 0 | J32: 0 | K32: 0 | L32: 0 | P32: 0
C33: 20 | G33: 0 | I33: 0 | J33: 0 | K33: 0 | L33: 0 | P33: 0
C34: 21 | G34: 0 | I34: 0 | J34: 0 | K34: 0 | L34: 0 | P34: 0
C35: 22 | G35: 0 | I35: 0 | J35: 0 | K35: 0 | L35: 0 | P35: 0
A36: 繰延税金資産（短期） | C36: 23 | D36: -49353130 | E36: -7893907 | G36: -41459223 | H36: 対象外 | I36: 0 | J36: -41459223 | K36: 0 | L36: 0 | P36: 0
A37: 繰延税金資産（長期） | C37: 24 | D37: -269642977 | F37: -18435377 | G37: -288078354 | H37: 対象外 | I37: 0 | J37: -288078354 | K37: 0 | L37: 0 | P37: 0
C38: 25 | G38: 0 | I38: 0 | J38: 0 | K38: 0 | L38: 0 | P38: 0
A39: 繰越損益金 | C39: 26 | D39: 897326160 | F39: 523228646 | G39: 1420554806 | H39: 剰余金 | I39: 1420554806 | J39: 0 | K39: 0 | L39: 0 | P39: 0
A40: 納税充当金 | C40: 27 | D40: 331250600 | E40: 331250600 | F40: 291900500 | G40: 291900500 | H40: 対象外 | I40: 0 | J40: 291900500 | K40: 0 | L40: 0 | P40: 0
B41: 未納法人税 | C41: 28 | D41: -225258700 | E41: -444903300 | F41: -440448900 | G41: -220804300 | H41: 対象外 | I41: 0 | J41: -220804300 | K41: 0 | L41: 0 | P41: 0
B42: 未納県民税 | C42: 29 | D42: -9242100 | E42: -18216500 | F42: -18097900 | G42: -9123500 | H42: 対象外 | I42: 0 | J42: -9123500 | K42: 0 | L42: 0 | P42: 0
B43: 未納市民税 | C43: 30 | D43: -26155900 | E43: -51135400 | F43: -50940800 | G43: =D43-E43+F43 -> -25961300 | H43: 対象外 | I43: 0 | J43: -25961300 | K43: 0 | L43: 0 | P43: 0
A44: 差引合計額 | C44: 31 | D44: =SUM(D14:D43) -> 8240047719 | E44: =SUM(E14:E43) -> -23779546 | F44: =SUM(F14:F43) -> 1174708872 | G44: 9438536137 | I44: =SUM(I14:I43) -> 8698493772 | J44: -293526177 | K44: 1033568542 | L44: 318442465
A45: 未払事業税(納税充当金－（未払法・住）) | C45: A | D45: 70593900 | E45: -183004600 | F45: -217587100 | G45: 36011400 | H45: 税効果対象 | I45: =IF(H45="剰余金",G45,0) -> 0 | J45: =IF(H45="対象外",G45,0) -> 0 | K45: =IF(H45="税効果対象",G45,0) -> 36011400 | L45: =ROUNDDOWN(K45*$L$12,0) -> 11095112 | M45: 将来減算一時差異 | P45: =IF(H45="税効果対象",1,0) -> 1 | Q45: =IF(P45=0,"",IF(K45<=0,"将来加算一時差異","将来減算一時差異")) -> 将来減算一時差異
A46: 繰越欠損金 | C46: B | G46: 0 | I46: =IF(H46="剰余金",G46,0) -> 0 | J46: =IF(H46="対象外",G46,0) -> 0 | K46: 0 | L46: 0 | P46: 0 | Q46: =IF(P46=0,"",IF(K46<=0,"将来加算一時差異","将来減算一時差異")) -> 
C47: C | G47: 0 | I47: =IF(H47="剰余金",G47,0) -> 0 | J47: =IF(H47="対象外",G47,0) -> 0 | K47: 0 | L47: 0 | P47: 0 | Q47: =IF(P47=0,"",IF(K47<=0,"将来加算一時差異","将来減算一時差異")) -> 
C48: D | G48: 0 | I48: =IF(H48="剰余金",G48,0) -> 0 | J48: =IF(H48="対象外",G48,0) -> 0 | K48: 0 | L48: 0 | P48: 0 | Q48: =IF(P48=0,"",IF(K48<=0,"将来加算一時差異","将来減算一時差異")) -> 
C49: E | G49: 0 | I49: =IF(H49="剰余金",G49,0) -> 0 | J49: =IF(H49="対象外",G49,0) -> 0 | K49: 0 | L49: 0 | P49: 0 | Q49: =IF(P49=0,"",IF(K49<=0,"将来加算一時差異","将来減算一時差異")) -> 
A50: 総合計 | C50: F | D50: =SUM(D44:D49) -> 8310641619 | E50: =SUM(E44:E49) -> -206784146 | F50: =SUM(F44:F49) -> 957121772 | G50: =SUM(G44:G49) -> 9474547537 | I50: =SUM(I44:I49) -> 8698493772 | J50: -293526177 | K50: 1069579942 | L50: 329537577
B52: ※未払事業税の計算 | K52: （B/S)
B53: (納税充当金－（未払法・住）（27+28+29+30）) | D53: =D40+D41+D42+D43 -> 70593900 | E53: =E40+E41+E42+E43 -> -183004600 | F53: -217587100 | G53: 36011400
J54: （A)繰延税金資産・△負債 当期 | K54: =L50 -> 329537577
J55: （B)繰延税金資産・△負債 前期 | K55: 318996107
J56: （C）＝（B)－（A）法人税等調整額 | K56: =K55-K54 -> -10541470

Sheet 回収可能性
A4: 会社名 | C4: =基本情報入力!E6 -> 株式会社森岡工務店
A6: 決算期 | C6: =基本情報入力!E8 -> 2020-03-31
A9: 過去三年間と当期の課税所得、繰越欠損金、一時差異の金額の推移
F10: 年度 | G10: =基本情報入力!G34 -> 2015-03-31 | H10: =基本情報入力!H34 -> 2016-03-31 | I10: =基本情報入力!I34 -> 2017-03-31 | J10: =基本情報入力!J34 -> 2018-03-31
B11: 繰越欠損金控除前の課税所得（別表４差引計） | G11: =基本情報入力!G35 -> 1624125771 | H11: =基本情報入力!H35 -> 1231222513 | I11: =基本情報入力!I35 -> 1624125771 | J11: =基本情報入力!J35 -> 1231222513
B12: 繰越欠損金 | G12: =基本情報入力!G36 -> 0 | H12: =基本情報入力!H36 -> 0 | I12: =基本情報入力!I36 -> 0 | J12: =基本情報入力!J36 -> 0
B13: 一時差異の金額 | G13: =基本情報入力!G37 -> 953547123 | H13: =基本情報入力!H37 -> 1120000123 | I13: =基本情報入力!I37 -> 953547123 | J13: =基本情報入力!J37 -> 1120000123
A15: 会社区分の判定（「繰延税金資産の回収可能性に関する適用指針」に基づく）
A16: 分類１ | B16: 過去（3 年）及び当期のすべての事業年度において、期末における将来減算一時差異を十分に上回る課税所得が生じているか | F16: Ｙｅｓ | K16: =IF(F16="Ｙｅｓ",1,2) -> 1 | L16: 判定１ | M16: =IF(AND(K16=1,K17=1),1,"次へ") -> 1
B17: 当期末において、近い将来に経営環境に著しい変化が見込まれないか？ | F17: Ｙｅｓ | K17: =IF(F17="Ｙｅｓ",1,2) -> 1 | L17: 判定２ | M17: =IF(AND(K18=1,K19=1,K20=1),2,"次へ") -> 次へ
A18: 分類２ | B18: 過去（3 年）及び当期のすべての事業年度において、臨時的な原因により生じたものを除いた課税所得が、期末における将来減算一時差異を下回るものの、安定的に生じているか？ | F18: Ｎｏ | K18: 2 | L18: 判定３ | M18: =IF(AND(K21=1,K22=1),3,"次へ") -> 次へ
B19: 当期末において、近い将来に経営環境に著しい変化が見込まれないか？ | F19: Ｎｏ | K19: 2 | L19: 判定４ | M19: =IF(AND(OR(K23=1,K24=1,K25=1),K26=1),4,"次へ") -> 次へ
B20: 過去（3 年）及び当期のいずれの事業年度においても重要な税務上の欠損金が生じていないか？ | F20: Ｎｏ | K20: 2 | L20: 判定５ | M20: =IF(AND(K27=1,K28=1),5,5) -> 5
A21: 分類３ | B21: 過去（3 年）及び当期において、臨時的な原因により生じたものを除いた課税所得が大きく増減しているか？ | F21: Ｎｏ | K21: 2 | L21: 判定６ | M21: =MIN(M16:M20) -> 1 | N21: =VLOOKUP($M$21,$K$31:$M$35,2,FALSE) -> 分類１ | O21: =VLOOKUP($M$21,$K$31:$M$35,3,FALSE) -> 繰延税金資産の全額について回収可能性がある
B22: 過去（3年）及び当期のいずれの事業年度においても重要な税務上の欠損金が生じていないか？ | F22: Ｎｏ | K22: 2
A23: 分類４ | B23: 過去（3年）又は当期において、重要な税務上の欠損金が生じているか？ | F23: Ｎｏ | K23: 2
B24: 過去（3年）において、重要な税務上の欠損金の繰越期限切れとなった事実があるか？ | F24: Ｎｏ | K24: 2
B25: 当期末において、重要な税務上の欠損金の繰越期限切れが見込まれるか？ | F25: Ｎｏ | K25: 2
B26: 翌期において一時差異等加減算前課税所得が生じることが見込まれるか？ | F26: Ｎｏ | K26: 2
A27: 分類５ | B27: 過去（3年）及び当期のすべての事業年度において、重要な税務上の欠損金が生じているか？ | F27: Ｎｏ | K27: 2
B28: 翌期においても重要な税務上の欠損金が生じることが見込まれるか？ | F28: Ｎｏ | K28: 2
A29: 判定 | F29: =N21 -> 分類１
A30: =O21 -> 繰延税金資産の全額について回収可能性がある
K31: 1 | L31: 分類１ | M31: 繰延税金資産の全額について回収可能性がある
K32: 2 | L32: 分類２ | M32: 一時差異等のスケジューリングの結果繰延税金資産を見積る場合、当該繰延税金資産は回収可能性があるものとする。 原則として、スケジューリング不能な将来減算一時差異に係る繰延税金資産について、回収可能性がないものとする。 ただし、スケジューリング不能な将来減算一時差異のうち、税務上の損金の算入時期が個別に特定できないが将来のいずれかの時点で損金に算入される可能性が高いと見込まれるものについて、当該将来のいずれかの時点で回収できることを企業が合理的な根拠をもって説明する場合、当該スケジューリング不能な将来減算一時差異に係る繰延税金資産は回収可能性があるものとする。
K33: 3 | L33: 分類３ | M33: 将来の合理的な見積可能期間（おおむね5年）以内の一時差異等加減算前課税所得の見積額に基づいて、当該見積可能期間の一時差異等のスケジューリングの結果、繰延税金資産を見積る場合、当該繰延税金資産は回収可能性があるものとする。 ただし臨時的な原因により生じたものを除いた課税所得が大きく増減している原因、中長期計画、過去における中長期計画の達成状況、過去（3年）及び当期の課税所得の推移等を勘案して、5年を超える見積可能期間においてスケジューリングされた一時差異等に係る繰延税金資産が回収可能であることを企業が合理的な根拠をもって説明する場合、当該繰延税金資産は回収可能性があるものとする。 なお、ここでいう中長期計画は、おおむね3年から5年の計画を想定している。将来の合理的な見積可能期間は、個々の企業の業績予測期間、業績予測能力、当該企業の置かれている経営環境等を勘案した結果、5年以内のより短い期間となる場合がある。その場合、当該期間を合理的な見積可能期間とする。
K34: 4 | L34: 分類４ | M34: 翌期の一時差異等加減算前課税所得の見積額に基づいて、翌期の一時差異等のスケジューリングの結果、繰延税金資産を見積る場合、当該繰延税金資産は回収可能性があるものとする。 重要な税務上の欠損金が生じた原因、中長期計画、過去における中長期計画の達成状況、過去（3年）及び当期の課税所得又は税務上の欠損金の推移等を勘案して、将来の一時差異等加減算前課税所得を見積る場合、将来において5年超にわたり一時差異等加減算前課税所得が安定的に生じることを企業が合理的な根拠をもって説明するときは（分類2）に該当するものとして取り扱う。 また重要な税務上の欠損金が生じた原因、中長期計画、過去における中長期計画の達成状況、過去（3年）及び当期の課税所得又は税務上の欠損金の推移等を勘案して、将来の一時差異等加減算前課税所得を見積る場合、将来においておおむね3年から5年程度は一時差異等加減算前課税所得が生じることを企業が合理的な根拠をもって説明するときは（分類3）に該当するものとして取り扱う。
K35: 5 | L35: 分類５ | M35: 原則として、繰延税金資産の回収可能性はないものとする

Sheet 将来加減算差異集計 (hidden)
A1: 将来減算一時差異
A2: 1 | B2: 退職給付引当金 | C2: 882571976
A3: 2 | B3: 役員退職慰労引当金 | C3: 232975000
A4: 3 | B4: 賞与引当金 | C4: 37139940
A5: 4 | B5: 貸倒引当金 | C5: 20189330
A6: 5 | B6: 一括償却資産（短期） | C6: 885710
A7: 6 | B7: 繰延資産償却超過額 | C7: 3970342
A8: 7 | B8: 減価償却超過額 | C8: 4790667
A9: 8 | B9: 販売促進費引当金 | C9: 37800000
A10: 9 | B10: 福利厚生会残高 | C10: 2537803
A11: 10 | B11: 一括償却資産（長期） | C11: 1646740
A12: 11 | B12: 未払事業税(納税充当金－（未払法・住）) | C12: 36011400
A13: 12
A14: 13
A15: 14
A16: 15
A17: 16
A18: 17
A19: 18
A20: 19
A21: 20
A22: 21
A23: 22
A24: 23
A25: 24
A26: 25
A27: 26
A28: 27
A29: 28
A30: 29
A31: 30
A32: 31
A33: 32
A34: 33
A35: 34
A36: 35
A37: 将来加算一時差異
A38: 1 | B38: 特別償却準備金認容 | C38: -64477156
A39: 2 | B39: 資産圧縮積立金認容 | C39: -126461810
A40: 3
A41: 4
A42: 5
A43: 6
A44: 7
A45: 8
A46: 9
A47: 10
A48: 11
A49: 12
A50: 13
A51: 14
A52: 15
A53: 16
A54: 17
A55: 18
A56: 19
A57: 20
A58: 21
A59: 22
A60: 23
A61: 24
A62: 25
A63: 26
A64: 27
A65: 28
A66: 29
A67: 30
A68: 31
A69: 32
A70: 33
A71: 34
A72: 35

Sheet スケジューリング
B4: 会社名 | C4: =基本情報入力!E6 -> 株式会社森岡工務店 | H4: 会社区分 | I4: =回収可能性!F29 -> 分類１
B5: 決算期 | C5: =基本情報入力!E8 -> 2020-03-31
L8: （単位：円）
B9: 項目 | E9: 当期末残 | F9: スケジューリング可能期間 | L9: スケジューリング 不能
F10: 将来の合理的な見積期間
E11: =基本情報入力!G12 -> 2020-03-31 | F11: =基本情報入力!H12 -> 2021-03-31 | G11: =基本情報入力!I12 -> 2022-03-31 | H11: =基本情報入力!J12 -> 2023-03-31 | I11: =基本情報入力!K12 -> 2024-03-31 | J11: =基本情報入力!L12 -> 2025-03-31 | K11: 5年超解消
B12: 実効税率 | E12: =基本情報入力!G27 -> 0.3081 | F12: =基本情報入力!H27 -> 0.3058 | G12: =基本情報入力!I27 -> 0.3058 | H12: =基本情報入力!J27 -> 0.3058 | I12: =基本情報入力!K27 -> 0.3058 | J12: =基本情報入力!L27 -> 0.3058 | K12: =基本情報入力!L27 -> 0.3058 | L12: =基本情報入力!L27 -> 0.3058
B13: 課税所得の計算
C14: 税引前当期純利益 | F14: 100000000 | G14: 100000000 | H14: 100000000 | I14: 100000000 | J14: 100000000
C15: 交際費等の損金不算入額
C16: 退職給付引当金繰入額
C17: 賞与引当金繰入額
C22: 一時差異等加減算前課税所得 | D22: A | F22: =SUM(F14:F21) -> 100000000 | G22: =SUM(G14:G21) -> 100000000 | H22: =SUM(H14:H21) -> 100000000 | I22: =SUM(I14:I21) -> 100000000 | J22: =SUM(J14:J21) -> 100000000
B23: 将来減算一時差異
C24: 退職給付引当金 | D24: 1 | E24: 882571976 | L24: =E24-SUM(F24:K24) -> 882571976
C25: 役員退職慰労引当金 | D25: 2 | E25: 232975000 | L25: =E25-SUM(F25:K25) -> 232975000
C26: 賞与引当金 | D26: 3 | E26: 37139940 | L26: 37139940
C27: 貸倒引当金 | D27: 4 | E27: 20189330 | L27: 20189330
C28: 一括償却資産（短期） | D28: 5 | E28: 885710 | L28: 885710
C29: 繰延資産償却超過額 | D29: 6 | E29: 3970342 | L29: 3970342
C30: 減価償却超過額 | D30: 7 | E30: 4790667 | L30: 4790667
C31: 販売促進費引当金 | D31: 8 | E31: 37800000 | L31: 37800000
C32: 福利厚生会残高 | D32: 9 | E32: 2537803 | L32: 2537803
C33: 一括償却資産（長期） | D33: 10 | E33: 1646740 | L33: 1646740
C34: 未払事業税(納税充当金－（未払法・住）) | D34: 11 | E34: 36011400 | L34: 36011400
D35: 12 | L35: 0
D36: 13 | L36: 0
D37: 14 | L37: 0
D38: 15 | L38: 0
D39: 16 | L39: 0
D40: 17 | L40: 0
D41: 18 | L41: 0
D42: 19 | L42: 0
D43: 20 | L43: 0
D44: 21 | L44: 0
D45: 22 | L45: 0
D46: 23 | L46: 0
D47: 24 | L47: 0
D48: 25 | L48: 0
D49: 26 | L49: 0
D50: 27 | L50: 0
D51: 28 | L51: 0
D52: 29 | L52: 0
D53: 30 | L53: 0
D54: 31 | L54: 0
D55: 32 | L55: 0
D56: 33 | L56: 0
D57: 34 | L57: 0
D58: 35 | L58: 0
C59: 将来減算一時差異計 | D59: B | E59: =SUM(E24:E58) -> 1260518908 | F59: =SUM(F24:F58) -> 0 | G59: 0 | H59: 0 | I59: 0 | J59: 0 | K59: 0 | L59: =SUM(L24:L58) -> 1260518908
B60: 将来加算一時差異
C61: 特別償却準備金認容 | D61: 1 | E61: -64477156 | L61: =E61-SUM(F61:K61) -> -64477156
C62: 資産圧縮積立金認容 | D62: 2 | E62: -126461810 | L62: -126461810
D63: 3 | L63: 0
D64: 4 | L64: 0
D65: 5 | L65: 0
D66: 6 | L66: 0
D67: 7 | L67: =E67-SUM(F67:J67) -> 0
D68: 8 | L68: 0
D69: 9 | L69: 0
D70: 10
D71: 11
D72: 12
D73: 13
D74: 14
D75: 15
D76: 16
D77: 17
D78: 18
D79: 19
D80: 20
D81: 21
D82: 22
D83: 23
D84: 24
D85: 25
D86: 26
D87: 27
D88: 28
D89: 29
D90: 30
D91: 31
D92: 32
D93: 33
D94: 34
D95: 35
C96: 将来加算一時差異計 | D96: C | E96: =SUM(E61:E95) -> -190938966 | F96: =SUM(F61:F95) -> 0 | G96: 0 | H96: 0 | I96: 0 | J96: 0 | K96: 0 | L96: -190938966
B97: 欠損金充当前課税所得（A-B+C) | D97: D | F97: =F22-F59+F96 -> 100000000 | G97: =G22-G59+G96 -> 100000000 | H97: =H22-H59+H96 -> 100000000 | I97: =I22-I59+I96 -> 100000000 | J97: =J22-J59+J96 -> 100000000
B98: 繰越欠損金
C99: 欠損金の控除限度額の割合 | D99: E | F99: =基本情報入力!H30 -> 0.5 | G99: =基本情報入力!I30 -> 0.5 | H99: =基本情報入力!J30 -> 0.5 | I99: =基本情報入力!K30 -> 0.5 | J99: =基本情報入力!L30 -> 0.5
C100: 繰越欠損金の控除限度額（D×E） | F100: =F97*F99 -> 50000000 | G100: =G97*G99 -> 50000000 | H100: 50000000 | I100: 50000000 | J100: 50000000
B101: 過年度の繰越欠損金
C102: =TEXT(基本情報入力!$G$34,"yyyy年mm月期発生分") -> 2015年03月期発生分 | D102: 1 | E102: =基本情報入力!G36 -> 0 | F102: =MIN(E102,F100) -> 0 | G102: =MIN(F108,G100) -> 0 | H102: =MIN(G108,H100) -> 0 | I102: 0 | J102: 0 | K102: =E102-SUM(F102:J102) -> 0
C103: =TEXT(基本情報入力!$H$34,"yyyy年mm月期発生分") -> 2016年03月期発生分 | D103: 2 | E103: =基本情報入力!H36 -> 0 | F103: =MIN(E103,F100-F102) -> 0 | G103: =MIN(F109,G100-G102) -> 0 | H103: =MIN(G109,H100-H102) -> 0 | I103: 0 | J103: 0 | K103: =E103-SUM(F103:J103) -> 0
C104: =TEXT(基本情報入力!$I$34,"yyyy年mm月期発生分") -> 2017年03月期発生分 | D104: 3 | E104: =基本情報入力!I36 -> 0 | F104: =MIN(E104,F100-F102-F103) -> 0 | G104: =MIN(F110,G100-G102-G103) -> 0 | H104: =MIN(G110,H100-H102-H103) -> 0 | I104: 0 | J104: 0 | K104: 0
C105: =TEXT(基本情報入力!$J$34,"yyyy年mm月期発生分") -> 2018年03月期発生分 | D105: 4 | E105: =基本情報入力!J36 -> 0 | F105: =MIN(E105,F100-F102-F103-F104) -> 0 | G105: =MIN(F105,G100-G102-G103-G104) -> 0 | H105: 0 | I105: 0 | J105: 0 | K105: 0
C106: =TEXT(基本情報入力!$K$34,"yyyy年mm月期発生分") -> 2019年03月期発生分 | D106: 5 | E106: =基本情報入力!K36 -> 0 | F106: =MIN(E106,F100-F102-F103-F104) -> 0 | G106: =MIN(F106,G100-G102-G103-G104) -> 0 | H106: 0 | I106: 0 | J106: 0 | K106: 0
C107: 合計 | D107: F | E107: =SUM(E102:E106) -> 0 | F107: =SUM(F102:F106) -> 0 | G107: 0 | H107: 0 | I107: 0 | J107: 0 | K107: 0
C108: =TEXT(基本情報入力!$G$34,"yyyy年mm月期発生分")&"残高" -> 2015年03月期発生分残高 | F108: =E102-F102 -> 0 | G108: =F108-G102 -> 0 | H108: =G108-H102 -> 0 | I108: 0 | J108: 0
C109: =TEXT(基本情報入力!$H$34,"yyyy年mm月期発生分")&"残高" -> 2016年03月期発生分残高 | F109: =E103-F103 -> 0 | G109: =F109-G103 -> 0 | H109: =G109-H103 -> 0 | I109: 0 | J109: 0
C110: =TEXT(基本情報入力!$I$34,"yyyy年mm月期発生分")&"残高" -> 2017年03月期発生分残高 | F110: =E104-F104 -> 0 | G110: =F110-G104 -> 0 | H110: =G110-H104 -> 0 | I110: 0 | J110: 0
C111: =TEXT(基本情報入力!$J$34,"yyyy年mm月期発生分")&"残高" -> 2018年03月期発生分残高 | F111: =E105-F105 -> 0 | G111: 0 | H111: 0 | I111: 0 | J111: 0
C112: =TEXT(基本情報入力!$K$34,"yyyy年mm月期発生分")&"残高" -> 2019年03月期発生分残高 | F112: 0 | G112: 0 | H112: 0 | I112: 0 | J112: 0
C113: 欠損金控除の課税所得（D-F) | D113: G | F113: =F97-F107 -> 100000000 | G113: =G97-G107 -> 100000000 | H113: 100000000 | I113: 100000000 | J113: 100000000
B115: 回収可能分
C116: 将来減算一時差異 | D116: B
C117: 将来加算一時差異 | D117: C
C118: 繰越欠損金 | D118: F
C119: 合計 | E119: =SUM(E116:E118) -> 0 | F119: =SUM(F116:F118) -> 0 | G119: 0 | H119: 0 | I119: 0 | J119: 0 | K119: 0 | L119: 0
B120: 実効税率 | F120: 0.3081 | G120: 0.3081 | H120: 0.3058 | I120: 0.3058 | J120: 0.3058 | K120: 0.3058 | L120: 0.3058
B121: 繰延税金資産 | E121: =別表５情報!K55 -> 318996107 | F121: =ROUNDDOWN(F119*F120,0) -> 0 | G121: =ROUNDDOWN(G119*G120,0) -> 0 | H121: 0 | I121: 0 | J121: 0 | K121: 0 | L121: 0

Sheet 税効果プルーフ
B4: 会社名 | C4: =基本情報入力!E6 -> 株式会社森岡工務店 | I4: 会社区分 | K4: =回収可能性!F29 -> 分類１
B5: 決算期 | C5: =基本情報入力!E8 -> 2020-03-31
E8: 税額差異 | G8: 税率差異
B9: 法人税等の理論値
C10: 税引前当期純利益 | D10: A | E10: 1865637694
C11: 実効税率 | D11: B | E11: =基本情報入力!G27 -> 0.3081 | I11: ★事業税軽減税率による負担率への影響額
C12: 理論上の法人税等の金額(A×B) | D12: C | E12: =ROUNDDOWN(E10*E11,0) -> 574802973 | G12: =E12/E10 -> 0.3080999997 | I12: 適用法人／不適用法人 | K12: =基本情報入力!H8 -> 適用法人
I13: 別表４所得額 | J13: =IF(基本情報入力!J35-基本情報入力!J36<0,0,基本情報入力!J35-基本情報入力!J36) -> 1231222513
B14: 損益計算書上の法人税等の金額 | I14: 所得区分 | J14: 所得額 | K14: 税率差 | L14: 税額
C15: 法人税等 | D15: D | E15: 581803007 | I15: 年400万円以下 | J15: =IF($J$13<=4000000,ROUNDDOWN($J$13/1000,0)*1000,4000000) -> 4000000 | K15: =基本情報入力!E27-基本情報入力!E29 -> 0.0032 | L15: =ROUNDDOWN(J15*K15,0) -> 12799
C16: 法人税等調整額 | D16: E | E16: -1557002 | I16: 年400万円～800万円 | J16: =IF($J$13<=4000000,0,IF($J$13<=8000000,ROUNDDOWN(($J$13-4000000)/1000,0)*1000,4000000)) -> 4000000 | K16: =基本情報入力!E27-基本情報入力!E28 -> 0.0016 | L16: =ROUNDDOWN(J16*K16,0) -> 6399
C17: 合計（D＋E） | D17: F | E17: =SUM(E15:E16) -> 580246005 | G17: =E17/E10 -> 0.311017518 | I17: 年800万円超 | J17: =IF($J$13<=8000000,0,ROUNDDOWN(($J$13-8000000)/1000,0)*1000) -> 1223222000 | K17: =基本情報入力!E27-基本情報入力!E27 -> 0
I18: 合計 | L18: =SUM(L15:L17) -> 19198
B19: 理論値と損益計算書の税額との差異（F－C) | D19: G | E19: =E17-E12 -> 5443032 | G19: =G12-G17 -> -0.002917518239
I20: ★中小法人等軽減税率による負担率への影響額
B21: 差異の内訳 | I21: 中小法人等／大法人 | K21: =基本情報入力!H6 -> 大法人
E22: 別表４の金額 | F22: 税額 | I22: 別表４所得額 | J22: =IF(基本情報入力!J35-基本情報入力!J36<0,0,基本情報入力!J35-基本情報入力!J36) -> 1231222513
C23: 役員給与損金不算入額 | D23: 1 | E23: 16500000 | F23: 5083650 | G23: =F23/$E$10 -> 0.002724885982 | I23: 所得区分 | J23: 所得額 | K23: 税率差 | L23: 税額
C24: 交際費等の損金不算入額 | D24: 2 | E24: 8930206 | F24: 2751396 | G24: 0.001474775091 | I24: 年800万円以下 | J24: =IF($J$13<=8000000,ROUNDDOWN($J$13/1000,0)*1000,8000000) -> 8000000 | K24: =(基本情報入力!E14-基本情報入力!E15)*(1+基本情報入力!E16+基本情報入力!E19) -> 0.10122 | L24: =ROUNDDOWN(J24*K24,0) -> 809760
C25: 受取配当等の益金不算入額 | D25: 3 | E25: -13402016 | F25: -4129162 | G25: -0.002213271105 | I25: 年800万円超 | J25: =IF($J$13<=8000000,0,ROUNDDOWN(($J$13-8000000)/1000,0)*1000) -> 1223222000 | K25: =0 -> 0
C26: 寄付金の損金不算入額 | D26: 4 | E26: 1517690 | F26: 467600 | G26: 0.0002506381606 | I26: 合計 | L26: =SUM(L24:L25) -> 809760
C27: 住民税均等割額 | D27: 5 | F27: 660000 | G27: 0.0003537664371
D28: 6 | G28: 0
D29: 7 | G29: 0
D30: 8 | G30: 0
D31: 9 | G31: 0
D32: 10 | G32: 0
D33: 11 | G33: 0
D34: 12 | G34: 0
D35: 13 | G35: 0
D36: 14 | G36: 0
D37: 15 | G37: 0
C38: 合計 | D38: H | F38: =SUM(F23:F37) -> 4833484 | G38: =SUM(G23:G37) -> 0.002590794566
B40: 差異と内訳の差（G-H) | D40: I | F40: =E19-F38 -> 609548 | G40: =G19+G38 -> -0.0003267236731
